bitfinex-derivatives/quotes_BTCF0:USTF0_20210108
["timestamp","ask_amount","ask_price","bid_price","bid_amount"]
[1610148639379,0.34664245,40746.0,40725.0,0.01896335]
[1610148640284,0.48296853,40746.0,40745.0,0.13632608]
[1610148640485,0.34664245,40746.0,40745.0,0.21694608]
[1610148640685,0.34664245,40746.0,40745.0,3.90290466]
[1610148641687,0.34664245,40746.0,40745.0,3.94395172]
[1610148641985,0.2825,40766.0,40745.0,3.94395172]
[1610148642284,0.13632608,40765.0,40764.0,0.13632608]
[1610148642885,0.13632608,40765.0,40764.0,0.15526319]
[1610148646689,0.13632608,40765.0,40764.0,0.01893711]
[1610148646890,0.10927,40786.0,40764.0,0.01893711]
[1610148647087,0.2728,40796.0,40764.0,0.14578711]
[1610148647294,0.2728,40796.0,40766.0,3.7835]
[1610148647890,0.2728,40796.0,40767.0,0.018928]
[1610148648291,0.2728,40796.0,40789.0,0.13632608]
[1610148648894,0.2728,40796.0,40790.0,0.00024229]
[1610148649393,0.0729,40795.0,40790.0,0.00024229]
[1610148649596,0.0729,40795.0,40789.0,0.00024229]
[1610148649793,0.2728,40796.0,40789.0,0.00024229]
[1610148650093,0.2728,40796.0,40791.0,0.00024229]
[1610148650293,0.13632608,40792.0,40791.0,0.13632608]
[1610148650697,0.13632608,40792.0,40791.0,0.13656835]
[1610148652097,0.13632608,40792.0,40791.0,0.65616835]
[1610148652399,0.13632608,40814.0,40791.0,0.65616835]
[1610148652798,0.13632608,40814.0,40792.0,0.000242]
[1610148654312,0.13632608,40793.0,40792.0,0.000242]
[1610148654708,0.12686,40810.0,40792.0,0.000242]
[1610148655302,0.12686,40810.0,40788.0,0.11578]
[1610148655503,0.12686,40810.0,40774.0,3.9886]
[1610148656102,0.12686,40810.0,40775.0,0.0968921]
[1610148656303,0.12686,40810.0,40780.0,0.13632608]
[1610148656504,0.12686,40810.0,40775.0,0.09665]
[1610148657004,1.62686,40810.0,40775.0,0.09665]
[1610148657205,2.99133,40801.0,40775.0,0.09665]
[1610148657403,1.5,40800.0,40751.0,4.0258]
[1610148657607,0.1569,40799.0,40751.0,4.0258]
[1610148657804,1.6569,40799.0,40751.0,4.0258]
[1610148658006,0.1569,40799.0,40751.0,4.0258]
[1610148658405,0.13632608,40752.0,40751.0,4.0258]
[1610148658705,0.13632608,40752.0,40720.0,2.39464751]
[1610148658905,0.13632608,40752.0,40726.0,3.9748]
[1610148659307,0.13632608,40752.0,40726.0,4.05659]
[1610148659509,0.13632608,40752.0,40727.0,0.0002423]
[1610148660407,0.12134,40762.0,40746.0,0.13632608]
[1610148661008,0.1569,40796.0,40746.0,0.13632608]
[1610148661308,3.3547,40794.0,40746.0,0.13632608]
[1610148662008,1.5,40793.0,40742.0,0.10471]
[1610148662507,0.13632608,40743.0,40742.0,0.10471]
[1610148664412,0.07791,40761.0,40742.0,0.2412784]
[1610148664612,3.0215,40787.0,40742.0,0.2412784]
[1610148664816,0.32701983,40809.0,40747.0,2.7443]
[1610148665217,0.3195,40809.0,40748.0,0.00024224]
[1610148666317,0.3195,40809.0,40763.0,0.13632608]
[1610148666517,0.296,40797.0,40763.0,0.23301608]
[1610148666717,0.296,40797.0,40764.0,0.00024221]
[1610148668919,0.13632608,40765.0,40764.0,0.00024221]
[1610148672022,0.13632608,40765.0,40743.0,0.01886283]
[1610148672222,1.5,40764.0,40743.0,0.01886283]
[1610148672422,1.5,40764.0,40743.0,0.01862052]
[1610148672624,1.5,40764.0,40744.0,0.00024234]
[1610148672923,0.13632608,40745.0,40743.0,0.01886292]
[1610148673123,0.13632608,40745.0,40733.0,0.01863467]
[1610148673423,0.13632608,40745.0,40744.0,0.00024241]
[1610148673623,0.13632608,40745.0,40734.0,0.01887683]
[1610148673822,0.13632608,40745.0,40744.0,0.00024239]
[1610148674223,0.13632608,40745.0,40737.0,0.08118]
[1610148674423,0.13632608,40745.0,40744.0,0.00024239]
[1610148674726,0.13632608,40745.0,40738.0,0.00024241]
[1610148674924,0.13632608,40739.0,40737.0,0.08118]
[1610148675625,0.13632608,40739.0,40738.0,0.00024244]
[1610148677326,0.13632608,40739.0,40738.0,0.0002424]
[1610148678128,0.13632608,40739.0,40738.0,0.00024246]
[1610148679931,0.13632608,40739.0,40738.0,0.00024245]
[1610148680131,0.13632608,40739.0,40737.0,0.08118]
[1610148680333,0.13632608,40739.0,40738.0,0.00024244]
[1610148681136,0.09774,40754.0,40738.0,0.00024244]
[1610148681336,0.39531,40768.0,40738.0,0.00024244]
[1610148681632,0.13632608,40739.0,40738.0,0.00024244]
[1610148684033,0.13632608,40739.0,40727.0,0.00024249]
[1610148684234,0.13632608,40739.0,40738.0,0.00024253]
[1610148684433,0.13632608,40739.0,40728.0,0.00024253]
[1610148684734,0.13632608,40739.0,40738.0,0.00024253]
[1610148684934,0.13632608,40739.0,40729.0,0.00024253]
[1610148685335,0.13632608,40739.0,40715.0,0.12295]
[1610148685536,0.12112,40744.0,40730.0,0.00024252]
[1610148685736,0.12112,40744.0,40716.0,0.00024252]
[1610148686139,0.12112,40744.0,40731.0,0.00024252]
[1610148686339,0.12112,40744.0,40717.0,0.0002425]
[1610148686639,0.12112,40744.0,40732.0,0.0002425]
[1610148686839,0.12112,40744.0,40718.0,0.0002425]
[1610148687038,0.12112,40744.0,40716.0,0.01889025]
[1610148687439,0.12112,40744.0,40719.0,0.0002425]
[1610148687739,0.13632608,40720.0,40717.0,0.00024252]
[1610148688039,0.13632608,40720.0,40716.0,0.01889027]
[1610148688239,0.13632608,40720.0,40718.0,0.00024252]
[1610148688439,0.13632608,40720.0,40717.0,0.00024252]
[1610148688640,0.13632608,40720.0,40716.0,0.01889027]
[1610148688938,0.13632608,40720.0,40718.0,0.00024252]
[1610148689137,0.13632608,40720.0,40717.0,0.00024252]
[1610148689638,0.13632608,40720.0,40716.0,0.01889027]
[1610148689840,0.13632608,40720.0,40718.0,0.00024252]
[1610148690039,0.13632608,40720.0,40717.0,0.00024252]
[1610148690241,0.13632608,40720.0,40719.0,0.00024252]
[1610148690640,0.13632608,40720.0,40715.0,0.12295]
[1610148690641,0.13632608,40720.0,40718.0,0.00024252]
[1610148690844,0.13632608,40720.0,40719.0,0.00024252]
[1610148691442,0.13632608,40720.0,40716.0,0.01889408]
[1610148691641,0.13632608,40720.0,40719.0,0.00024252]
[1610148691845,0.13632608,40720.0,40717.0,0.00024252]
[1610148692147,0.13632608,40720.0,40719.0,0.00024252]
[1610148692344,0.13632608,40720.0,40718.0,0.00024256]
[1610148692643,0.13632608,40720.0,40715.0,0.12295]
[1610148692644,0.13632608,40720.0,40719.0,0.00024256]
[1610148693245,0.13632608,40720.0,40716.0,0.00024256]
[1610148693443,0.13632608,40720.0,40719.0,0.00024256]
[1610148693644,0.13632608,40720.0,40717.0,0.00024256]
[1610148694043,0.13632608,40720.0,40707.0,0.00024256]
[1610148694243,0.13632608,40720.0,40718.0,0.00024256]
[1610148694444,0.13632608,40720.0,40708.0,0.00024256]
[1610148694845,0.13632608,40720.0,40719.0,0.00024256]
[1610148695044,0.13632608,40720.0,40709.0,0.00024256]
[1610148695244,0.13632608,40720.0,40719.0,0.00024256]
[1610148695546,0.13632608,40720.0,40710.0,0.00024254]
[1610148695848,0.13632608,40720.0,40719.0,0.00024254]
[1610148696046,0.13632608,40720.0,40716.0,0.10512]
[1610148696449,0.13632608,40720.0,40719.0,0.00024252]
[1610148696647,0.13632608,40720.0,40717.0,0.00024252]
[1610148699151,0.13632608,40720.0,40707.0,0.00024255]
[1610148699352,0.13632608,40720.0,40718.0,0.00024255]
[1610148699549,0.13632608,40720.0,40708.0,0.00024255]
[1610148699750,0.13632608,40720.0,40719.0,0.00024257]
[1610148700151,0.13632608,40720.0,40709.0,0.00024257]
[1610148700352,0.13632608,40720.0,40706.0,0.10077]
[1610148700651,0.13632608,40720.0,40710.0,0.00024258]
[1610148700851,0.13632608,40720.0,40705.0,0.1015]
[1610148700852,0.13632608,40720.0,40707.0,0.00024258]
[1610148701053,0.13632608,40720.0,40706.0,0.00024258]
[1610148701459,0.13632608,40720.0,40708.0,0.00024258]
[1610148701755,0.13632608,40709.0,40698.0,0.02530505]
[1610148701953,0.13632608,40709.0,40699.0,0.00024259]
[1610148703156,0.13632608,40709.0,40699.0,0.0188993]
[1610148703755,0.10274,40723.0,40704.0,0.13632608]
[1610148704054,0.2891,40743.0,40704.0,0.24465608]
[1610148704258,0.2891,40743.0,40705.0,0.00024255]
[1610148705755,0.13632608,40706.0,40705.0,0.00024255]
[1610148708356,0.13632608,40706.0,40699.0,0.00024263]
[1610148708556,0.13632608,40706.0,40705.0,0.00024263]
[1610148708857,0.13632608,40706.0,40700.0,0.00024263]
[1610148709056,0.13632608,40706.0,40705.0,0.00024263]
[1610148709257,0.13632608,40706.0,40698.0,0.02530505]
[1610148709258,0.13632608,40706.0,40701.0,0.00024263]
[1610148709657,0.13632608,40706.0,40705.0,0.00024263]
[1610148709860,0.13632608,40706.0,40702.0,0.00024263]
[1610148710162,0.13632608,40706.0,40705.0,0.00024266]
[1610148710357,0.13632608,40706.0,40703.0,0.00024266]
[1610148710558,0.13632608,40706.0,40705.0,0.00024268]
[1610148710958,0.13632608,40706.0,40698.0,0.02530505]
[1610148710959,0.13632608,40706.0,40704.0,0.00024268]
[1610148711158,0.13632608,40706.0,40705.0,0.00024268]
[1610148711761,0.13632608,40706.0,40699.0,0.00024274]
[1610148711962,0.13632608,40706.0,40698.0,0.02530505]
[1610148712160,0.13632608,40706.0,40700.0,0.00024307]
[1610148712362,0.13632608,40706.0,40699.0,0.00024307]
[1610148712762,3.2089,40705.0,40699.0,0.00024307]
[1610148713662,0.13632608,40700.0,40699.0,0.00024307]
[1610148713962,0.23938608,40700.0,40698.0,0.02530505]
[1610148716165,0.23938608,40700.0,40699.0,0.0002431]
[1610148717768,0.23938608,40700.0,40698.0,0.02530505]
[1610148723677,0.81518608,40700.0,40698.0,0.02530505]
[1610148724280,0.23938608,40700.0,40698.0,0.02530505]
[1610148725180,0.2903,40699.0,40698.0,0.02530505]
[1610148740192,0.53451898,40700.0,40698.0,0.02530505]
[1610148740397,0.53451898,40700.0,40698.0,0.02554819]
[1610148740696,0.53451898,40700.0,40699.0,0.00024314]
[1610148744301,0.3981929,40700.0,40699.0,0.00024314]
[1610148744702,0.3981929,40700.0,40699.0,0.01907458]
[1610148745902,0.53451898,40700.0,40699.0,0.01907458]
[1610148754511,0.53451898,40700.0,40699.0,0.57347458]
[1610148755112,0.3981929,40700.0,40699.0,0.57347458]
[1610148755314,0.3981929,40700.0,40699.0,0.61467638]
[1610148755814,0.3981929,40700.0,40699.0,0.75100246]
[1610148757018,0.3981929,40700.0,40699.0,0.70980066]
[1610148757318,0.3981929,40700.0,40699.0,0.57347458]
[1610148757818,0.53451898,40700.0,40699.0,0.57347458]
[1610148759219,0.53451898,40700.0,40699.0,0.00024314]
[1610148759420,0.53451898,40700.0,40699.0,0.01907039]
[1610148759719,0.53451898,40700.0,40699.0,0.00024314]
[1610148762320,4.59001898,40700.0,40699.0,0.00024314]
[1610148762820,4.59001898,40700.0,40698.0,0.02530505]
[1610148768628,0.53451898,40700.0,40698.0,0.02530505]
[1610148778041,2.03451898,40700.0,40698.0,0.02530505]
[1610148778843,2.03451898,40700.0,40637.0,0.11122]
[1610148779143,3.4196,40682.0,40638.0,0.0191429]
[1610148779443,1.5,40681.0,40638.0,0.0191429]
[1610148779642,3.0381,40665.0,40638.0,0.0191429]
[1610148779948,0.13632608,40639.0,40638.0,0.0002434]
[1610148780644,0.13632608,40639.0,40623.0,0.01915036]
[1610148780843,0.13632608,40639.0,40623.0,0.06049403]
[1610148781046,0.13632608,40639.0,40623.0,0.01915036]
[1610148781244,0.13632608,40639.0,40624.0,0.01914773]
[1610148781447,0.13632608,40639.0,40624.0,0.09689773]
[1610148781844,0.13632608,40639.0,40625.0,0.01914869]
[1610148782045,0.2831,40650.0,40625.0,0.01914869]
[1610148783045,0.2831,40650.0,40628.0,3.6653]
[1610148783446,0.2831,40650.0,40629.0,0.01914858]
[1610148783846,0.07724,40651.0,40629.0,0.01914858]
[1610148784046,0.07724,40651.0,40632.0,0.13632608]
[1610148784549,0.09349,40665.0,40633.0,1.62724545]
[1610148784746,0.2968,40680.0,40644.0,3.9069]
[1610148785047,0.2823,40679.0,40644.0,3.995]
[1610148785249,0.2823,40679.0,40645.0,0.01914145]
[1610148786046,0.13632608,40646.0,40645.0,0.01914145]
[1610148787550,0.13632608,40646.0,40645.0,2.81274145]
[1610148788352,0.13632608,40646.0,40645.0,2.85406788]
[1610148789451,0.13632608,40646.0,40645.0,2.92066967]
[1610148790052,0.11756,40673.0,40645.0,2.92066967]
[1610148790552,0.11756,40673.0,40646.0,0.12706656]
[1610148791252,0.2823,40679.0,40646.0,0.12706656]
[1610148791453,3.1759,40698.0,40646.0,0.12706656]
[1610148791654,0.1569,40699.0,40647.0,1.5]
[1610148791856,0.2869,40697.0,40647.0,1.5]
[1610148792055,0.13632608,40664.0,40663.0,0.13632608]
[1610148792456,0.13632608,40664.0,40663.0,0.15545615]
[1610148793155,0.13632608,40664.0,40663.0,0.01913007]
[1610148794255,0.13632608,40664.0,40650.0,0.12702007]
[1610148794456,0.13632608,40664.0,40663.0,0.01913316]
[1610148794856,0.13632608,40664.0,40650.0,0.10789]
[1610148794857,0.13632608,40664.0,40656.0,0.08203]
[1610148795057,0.13632608,40664.0,40663.0,0.01914065]
[1610148795258,0.13632608,40664.0,40657.0,0.01913917]
[1610148795560,0.13632608,40664.0,40663.0,0.01914041]
[1610148795759,0.13632608,40664.0,40658.0,0.01914026]
[1610148795959,0.13632608,40659.0,40658.0,0.01914026]
[1610148796159,0.13632608,40659.0,40657.0,0.01914165]
[1610148796360,0.13632608,40659.0,40658.0,0.01914192]
[1610148797060,0.13632608,40659.0,40657.0,0.01914402]
[1610148797259,0.13632608,40659.0,40658.0,0.01914371]
[1610148797659,0.13632608,40659.0,40657.0,0.01914433]
[1610148798064,0.13632608,40659.0,40658.0,0.01914416]
[1610148798462,0.13632608,40659.0,40657.0,0.01914286]
[1610148798761,0.13632608,40659.0,40658.0,0.01914003]
[1610148799462,0.13632608,40659.0,40658.0,0.01889059]
[1610148799662,0.13632608,40659.0,40658.0,0.01913393]
[1610148800062,0.13632608,40659.0,40657.0,0.01913499]
[1610148800262,0.13632608,40659.0,40658.0,0.00024336]
[1610148800962,0.13632608,40659.0,40657.0,0.01913501]
[1610148803567,0.13632608,40659.0,40645.0,0.01914832]
[1610148803765,0.13632608,40659.0,40658.0,0.01915396]
[1610148804067,0.13632608,40659.0,40646.0,0.01915453]
[1610148804567,0.13632608,40659.0,40647.0,0.01915466]
[1610148804866,0.13632608,40659.0,40658.0,0.01915466]
[1610148805168,0.13632608,40659.0,40648.0,0.01915448]
[1610148805465,0.13632608,40659.0,40658.0,0.01915458]
[1610148805666,0.13632608,40659.0,40649.0,0.01915397]
[1610148805868,0.13632608,40659.0,40658.0,0.0191532]
[1610148806166,0.2762,40661.0,40650.0,0.01915328]
[1610148806474,0.2762,40661.0,40659.0,0.01915348]
[1610148806668,0.2762,40661.0,40651.0,0.01915101]
[1610148807068,0.2762,40661.0,40641.0,0.06050065]
[1610148807268,0.2762,40661.0,40652.0,0.019152]
[1610148807571,0.2762,40661.0,40641.0,0.04134824]
[1610148807572,0.2762,40661.0,40642.0,0.01915233]
[1610148807872,0.2762,40661.0,40653.0,0.01915265]
[1610148808068,0.13632608,40654.0,40643.0,0.01915238]
[1610148808471,0.13632608,40654.0,40641.0,0.04134824]
[1610148808672,0.13632608,40654.0,40644.0,0.01915166]
[1610148808870,0.13632608,40654.0,40634.0,0.01915326]
[1610148809071,2.8331,40653.0,40645.0,0.01915464]
[1610148809369,2.8331,40653.0,40635.0,0.01915489]
[1610148809570,2.8331,40653.0,40624.0,0.07775]
[1610148809571,2.8331,40653.0,40646.0,0.01915485]
[1610148809971,2.8331,40653.0,40636.0,0.01915571]
[1610148809972,0.13632608,40637.0,40636.0,0.01915571]
[1610148810170,0.13632608,40637.0,40624.0,0.07775]
[1610148810472,0.13632608,40637.0,40636.0,0.01915107]
[1610148810670,0.13632608,40637.0,40634.0,0.01915188]
[1610148810973,0.13632608,40637.0,40636.0,0.01915173]
[1610148811174,0.13632608,40637.0,40634.0,0.0191524]
[1610148811474,0.13632608,40637.0,40636.0,0.01915258]
[1610148811773,0.13632608,40637.0,40635.0,0.01915211]
[1610148811975,0.69172608,40637.0,40636.0,0.00024347]
[1610148812375,0.69172608,40637.0,40636.0,0.01915415]
[1610148812572,0.69172608,40637.0,40634.0,0.01915522]
[1610148813073,0.69172608,40637.0,40634.0,0.0002435]
[1610148813274,0.69172608,40637.0,40635.0,0.00024352]
[1610148813976,0.13632608,40626.0,40625.0,0.00024352]
[1610148814978,0.13632608,40626.0,40607.0,0.01915983]
[1610148815177,0.13632608,40626.0,40625.0,0.00024354]
[1610148815578,0.13632608,40626.0,40608.0,0.00024354]
[1610148815779,0.13632608,40626.0,40607.0,2.57824399]
[1610148815982,0.2977,40636.0,40618.0,0.13632608]
[1610148816180,0.2977,40636.0,40618.0,0.23177608]
[1610148816580,0.2977,40636.0,40619.0,0.01915516]
[1610148818083,0.13632608,40620.0,40619.0,0.01915516]
[1610148818283,0.13632608,40620.0,40607.0,0.06051711]
[1610148818583,0.13632608,40620.0,40619.0,0.01916011]
[1610148818781,0.13632608,40620.0,40619.0,0.01891658]
[1610148818981,0.13632608,40620.0,40608.0,0.00024355]
[1610148818982,0.13632608,40620.0,40608.0,3.94296153]
[1610148819183,0.13632608,40620.0,40619.0,0.01916002]
[1610148819482,0.13632608,40620.0,40606.0,0.10565]
[1610148819483,0.13632608,40620.0,40616.0,0.07796]
[1610148819681,0.13632608,40620.0,40619.0,0.01915871]
[1610148819882,0.13632608,40620.0,40617.0,0.0191583]
[1610148820282,0.13632608,40620.0,40619.0,0.01915869]
[1610148820482,0.13632608,40620.0,40618.0,0.01915788]
[1610148820682,0.13632608,40620.0,40619.0,0.01915774]
[1610148821184,0.13632608,40620.0,40607.0,0.01915789]
[1610148821584,0.13632608,40620.0,40619.0,0.01915766]
[1610148821785,0.13632608,40620.0,40608.0,0.01915688]
[1610148821985,0.13632608,40620.0,40619.0,0.01915571]
[1610148822189,0.2977,40636.0,40619.0,0.01915571]
[1610148822386,0.1235,40643.0,40617.0,0.11863]
[1610148822587,2.93279,40653.0,40620.0,0.01915411]
[1610148822787,0.2977,40652.0,40618.0,0.01915416]
[1610148823186,0.2977,40652.0,40621.0,0.01915316]
[1610148823387,0.2977,40652.0,40619.0,0.01915171]
[1610148823688,0.2977,40652.0,40622.0,0.01915122]
[1610148823885,0.2977,40652.0,40620.0,0.01915122]
[1610148824085,0.13632608,40623.0,40620.0,0.00024347]
[1610148824286,0.13632608,40623.0,40617.0,0.11863]
[1610148824488,0.13632608,40623.0,40621.0,0.01915438]
[1610148824686,0.13632608,40623.0,40618.0,0.0191548]
[1610148824887,0.13632608,40623.0,40622.0,0.01915653]
[1610148825186,0.13632608,40623.0,40619.0,0.01915546]
[1610148825687,0.13632608,40623.0,40622.0,0.01915647]
[1610148825886,0.13632608,40623.0,40618.0,0.01915668]
[1610148826090,0.13632608,40623.0,40622.0,0.01915688]
[1610148826293,0.13632608,40623.0,40619.0,0.01915753]
[1610148826591,0.13632608,40623.0,40617.0,0.11863]
[1610148826592,0.13632608,40623.0,40622.0,0.01915803]
[1610148826790,0.13632608,40623.0,40620.0,0.01915825]
[1610148827191,0.13632608,40623.0,40622.0,0.01915835]
[1610148827491,0.13632608,40623.0,40621.0,0.01915747]
[1610148827691,0.13632608,40623.0,40622.0,0.01915845]
[1610148828193,0.13632608,40623.0,40618.0,0.01915877]
[1610148828492,0.13632608,40623.0,40622.0,0.0191605]
[1610148828691,0.13632608,40623.0,40619.0,0.01916014]
[1610148828895,0.13632608,40623.0,40618.0,0.01916034]
[1610148829092,0.13632608,40623.0,40618.0,0.01891681]
[1610148829292,0.13632608,40623.0,40620.0,0.01915985]
[1610148829592,0.13632608,40623.0,40619.0,0.01915932]
[1610148829791,0.13632608,40623.0,40621.0,0.01916099]
[1610148829995,0.13632608,40623.0,40620.0,0.01916152]
[1610148830193,0.13632608,40623.0,40622.0,0.01916174]
[1610148830593,0.13632608,40623.0,40621.0,0.01916103]
[1610148830795,0.13632608,40623.0,40622.0,0.01916124]
[1610148831294,0.13632608,40623.0,40607.0,0.01916083]
[1610148831496,0.13632608,40623.0,40622.0,0.00024355]
[1610148831695,0.13632608,40623.0,40622.0,0.01916156]
[1610148831896,0.13632608,40623.0,40607.0,0.019162]
[1610148832095,0.13632608,40623.0,40606.0,0.10565]
[1610148832096,0.11577,40632.0,40622.0,0.01916159]
[1610148832296,0.11577,40632.0,40608.0,0.01922655]
[1610148832598,0.11577,40632.0,40607.0,0.01922586]
[1610148832997,0.11577,40632.0,40609.0,0.01922621]
[1610148833196,0.11577,40632.0,40608.0,0.01922595]
[1610148833496,0.11577,40632.0,40610.0,0.01922663]
[1610148833797,0.11577,40632.0,40609.0,0.01922697]
[1610148833998,0.11577,40632.0,40611.0,0.01922685]
[1610148834198,0.13632608,40612.0,40610.0,0.01922644]
[1610148834697,0.13632608,40612.0,40611.0,0.0192263]
[1610148835197,0.13632608,40612.0,40611.0,0.01922702]
[1610148835600,0.13632608,40612.0,40608.0,0.01922702]
[1610148835798,0.13632608,40612.0,40611.0,0.01922738]
[1610148835998,0.13632608,40612.0,40607.0,0.01922855]
[1610148836398,0.13632608,40612.0,40611.0,0.01922957]
[1610148836601,0.13632608,40612.0,40608.0,0.0192311]
[1610148836898,0.13632608,40612.0,40611.0,0.00024373]
[1610148837098,0.13632608,40612.0,40609.0,0.01922972]
[1610148837499,0.13632608,40612.0,40611.0,0.00024371]
[1610148837698,0.13632608,40612.0,40607.0,0.01922694]
[1610148837898,0.13632608,40612.0,40611.0,0.00024369]
[1610148838099,0.13632608,40612.0,40611.0,0.13632608]
[1610148838399,0.13632608,40612.0,40611.0,0.13656977]
[1610148838799,0.4415,40662.0,40611.0,0.15555113]
[1610148839000,0.4415,40662.0,40612.0,0.01922409]
[1610148839203,0.2823,40643.0,40614.0,3.9643]
[1610148839601,0.2823,40643.0,40614.0,6.48730896]
[1610148839803,0.2823,40643.0,40615.0,0.12739576]
[1610148840005,0.2823,40643.0,40618.0,2.5229331]
[1610148840203,0.2823,40643.0,40624.0,0.13632608]
[1610148840404,0.2823,40643.0,40624.0,0.21875608]
[1610148840705,0.2823,40643.0,40625.0,0.01921688]
[1610148842707,0.2823,40643.0,40610.0,2.52315865]
[1610148842708,0.09928042,40612.0,40552.0,3.42131006]
[1610148843008,0.09928042,40612.0,40611.0,0.24450993]
[1610148843307,0.1569,40642.0,40611.0,3.24766313]
[1610148843507,0.1569,40642.0,40611.0,4.72844442]
[1610148843706,0.1569,40642.0,40612.0,0.12738137]
[1610148844006,0.2911,40648.0,40628.0,0.4924]
[1610148844510,0.2911,40648.0,40629.0,0.01921255]
[1610148844906,0.2911,40648.0,40632.0,0.13632608]
[1610148845307,0.2911,40648.0,40633.0,0.01921428]
[1610148845909,0.2911,40648.0,40630.0,3.9056]
[1610148846108,0.2911,40648.0,40634.0,0.01921778]
[1610148846310,0.2911,40648.0,40631.0,0.06065385]
[1610148846709,0.2911,40648.0,40635.0,0.01921798]
[1610148846909,0.13632608,40636.0,40632.0,0.01921832]
[1610148847110,0.13632608,40636.0,40635.0,0.0192182]
[1610148847610,0.13632608,40636.0,40635.0,0.00024363]
[1610148847809,0.13632608,40636.0,40635.0,0.01921801]
[1610148848009,0.13632608,40636.0,40631.0,0.04143609]
[1610148848010,0.13632608,40636.0,40631.0,0.06065285]
[1610148848210,0.13632608,40636.0,40635.0,0.10710216]
[1610148848414,0.13632608,40636.0,40635.0,0.08789]
[1610148848613,0.2838,40661.0,40635.0,0.08789]
[1610148848812,0.13632608,40638.0,40637.0,0.13632608]
[1610148849417,0.13632608,40638.0,40637.0,0.15552831]
[1610148851518,0.13632608,40638.0,40637.0,0.01920223]
[1610148851918,0.13632608,40638.0,40636.0,0.01920975]
[1610148852123,0.13632608,40638.0,40637.0,0.01921141]
[1610148852721,0.13632608,40638.0,40636.0,0.01921178]
[1610148852921,0.13632608,40638.0,40637.0,0.019212]
[1610148853521,0.13632608,40638.0,40624.0,0.06063899]
[1610148853720,0.13632608,40638.0,40637.0,0.01921358]
[1610148854020,0.13632608,40638.0,40625.0,0.0192137]
[1610148854219,0.13632608,40638.0,40624.0,0.06063949]
[1610148854629,0.13632608,40638.0,40626.0,0.01921368]
[1610148854821,0.10576,40653.0,40624.0,0.04142579]
[1610148854822,0.13632608,40630.0,40629.0,0.13632608]
[1610148855021,0.10576,40653.0,40629.0,0.13632608]
[1610148855221,0.10576,40653.0,40633.0,2.7498]
[1610148855523,0.10576,40653.0,40634.0,0.06063267]
[1610148856322,0.10576,40653.0,40633.0,0.0192168]
[1610148856721,0.10576,40653.0,40635.0,0.01921788]
[1610148856922,0.13632608,40636.0,40634.0,0.0192185]
[1610148857122,0.13632608,40636.0,40632.0,0.09384]
[1610148857424,0.13632608,40636.0,40635.0,0.01921866]
[1610148857722,0.13632608,40636.0,40633.0,0.01921898]
[1610148857921,0.13632608,40636.0,40635.0,0.01921915]
[1610148858322,0.13632608,40636.0,40634.0,0.01921908]
[1610148858621,0.13632608,40636.0,40632.0,0.09384]
[1610148858622,0.13632608,40636.0,40635.0,0.01921896]
[1610148859024,0.13632608,40636.0,40633.0,0.01921904]
[1610148862130,0.13632608,40636.0,40634.0,0.01921749]
[1610148862731,0.13632608,40636.0,40622.0,0.06065454]
[1610148862933,0.13632608,40623.0,40622.0,0.04143654]
[1610148863432,0.13632608,40623.0,40622.0,0.06065568]
[1610148864233,0.13632608,40623.0,40620.0,0.0192197]
[1610148864633,0.13632608,40623.0,40622.0,0.0192199]
[1610148864933,0.13632608,40623.0,40621.0,0.01922215]
[1610148865136,0.13632608,40623.0,40622.0,0.01922496]
[1610148865735,0.13632608,40623.0,40613.0,0.06068367]
[1610148865933,0.13632608,40623.0,40622.0,0.00024371]
[1610148866134,0.13632608,40623.0,40622.0,0.01923096]
[1610148866434,0.13632608,40623.0,40614.0,0.01923134]
[1610148866735,0.13632608,40623.0,40615.0,0.01923087]
[1610148866935,0.13632608,40616.0,40615.0,0.01923087]
[1610148867136,0.13632608,40616.0,40607.0,0.01923171]
[1610148867340,0.13632608,40616.0,40615.0,0.01923202]
[1610148867538,0.13632608,40616.0,40607.0,0.06069384]
[1610148868038,0.13632608,40616.0,40606.0,0.10565]
[1610148868237,0.13632608,40616.0,40608.0,0.01923309]
[1610148868638,0.13632608,40616.0,40609.0,0.01923183]
[1610148868839,0.13632608,40616.0,40609.0,0.01898809]
[1610148869037,0.13632608,40610.0,40608.0,0.07992484]
[1610148869238,0.13632608,40610.0,40608.0,0.06069351]
[1610148869438,0.13632608,40610.0,40609.0,0.01923045]
[1610148874243,0.13632608,40610.0,40609.0,0.01923471]
[1610148882555,2.89852608,40610.0,40609.0,0.01923471]
[1610148883458,2.89852608,40610.0,40609.0,0.00024375]
[1610148883656,2.89852608,40610.0,40609.0,0.01924065]
[1610148884057,2.89852608,40610.0,40609.0,0.00024375]
[1610148884259,2.89852608,40610.0,40609.0,0.0192401]
[1610148884459,2.89852608,40610.0,40609.0,0.00024375]
[1610148885262,3.01914608,40610.0,40608.0,0.01923309]
[1610148885463,3.01914608,40610.0,40609.0,0.0002431]
[1610148887673,3.01914608,40610.0,40608.0,0.01923309]
[1610148889468,0.25694608,40610.0,40608.0,0.01923309]
[1610148889669,3.6798,40609.0,40608.0,0.01923309]
[1610148889881,0.25694608,40610.0,40608.0,0.01923309]
[1610148896078,0.12062,40610.0,40608.0,0.01923309]
[1610148896380,3.7492,40612.0,40608.0,0.01923309]
[1610148897077,3.7492,40612.0,40576.0,3.906]
[1610148897078,0.13632608,40609.0,40576.0,3.906]
[1610148897277,0.23804608,40609.0,40576.0,3.906]
[1610148897779,0.23804608,40609.0,40577.0,0.00024323]
[1610148898180,0.23804608,40609.0,40576.0,3.906]
[1610148898779,0.23804608,40609.0,40533.0,2.66222723]
[1610148898780,0.23804608,40609.0,40539.0,2.51275271]
[1610148898979,4.0246,40603.0,40546.0,3.1534]
[1610148899181,0.13632608,40560.0,40550.0,0.13632608]
[1610148899781,0.13632608,40560.0,40551.0,0.00024331]
[1610148900081,0.13632608,40560.0,40551.0,0.08447331]
[1610148900282,0.13632608,40560.0,40552.0,0.00024331]
[1610148901082,0.13632608,40553.0,40552.0,0.00024331]
[1610148901284,0.2734,40592.0,40552.0,0.00024331]
[1610148903185,0.2902,40608.0,40568.0,0.13632608]
[1610148903386,0.2994,40607.0,40571.0,3.7818]
[1610148903783,0.10172,40609.0,40571.0,3.7818]
[1610148903986,0.10172,40609.0,40572.0,0.0002432]
[1610148904186,0.2739,40618.0,40572.0,0.0002432]
[1610148905286,0.2739,40618.0,40591.0,0.13632608]
[1610148905889,0.2739,40618.0,40589.0,0.10326]
[1610148906886,0.2739,40618.0,40571.0,3.7818]
[1610148907187,0.2739,40618.0,40573.0,0.13632608]
[1610148907686,0.2739,40618.0,40574.0,0.00024315]
[1610148908389,0.2739,40618.0,40574.0,1.50024315]
[1610148908887,0.2739,40618.0,40575.0,0.01901878]
[1610148909188,0.2739,40618.0,40585.0,0.13632608]